bitfinex/quotes_SOLUSD_20260302
["timestamp","ask_amount","ask_price","bid_price","bid_amount"]
[1772424833432,2.58604389,84.66,84.641,2.2762039]
[1772424833620,0.2,84.67,84.641,2.2762039]
[1772424834816,4.59866527,84.66,84.633,2.2762039]
[1772424835022,11.81209322,84.659,84.633,2.2762039]
[1772424835522,2.38604389,84.658,84.633,2.2762039]
[1772424835719,2.38604389,84.658,84.628,2.2762039]
[1772424836298,2.38604389,84.649,84.625,11.8167028]
[1772424837912,2.38604389,84.649,84.626,2.2762039]
[1772424838319,2.38604389,84.649,84.631,2.2762039]
[1772424843720,2.38604389,84.647,84.618,2.2762039]
[1772424844836,2.38604389,84.645,84.618,2.2762039]
[1772424845233,2.38604389,84.645,84.621,2.2762039]
[1772424847352,2.38604389,84.645,84.623,2.2762039]
[1772424848921,2.38604389,84.653,84.625,2.2762039]
[1772424850117,2.38604389,84.653,84.631,2.2762039]
[1772424851019,2.38604389,84.653,84.633,2.2762039]
[1772424852345,2.38604389,84.653,84.635,2.2762039]
[1772424856244,2.38604389,84.653,84.636,11.81530318]
[1772424856425,2.39855069,84.659,84.637,2.19462773]
[1772424857430,2.39855069,84.659,84.64,4.59866527]
[1772424857643,2.28118565,84.664,84.641,2.28066012]
[1772424858243,2.28118565,84.659,84.62,4.59866527]
[1772424858546,2.28118565,84.659,84.621,2.28066012]
[1772424859122,2.28118565,84.659,84.624,11.81687659]
[1772424859322,2.28118565,84.659,84.625,2.28066012]
[1772424859527,2.28118565,84.657,84.626,14.09735947]
[1772424860645,11.81251181,84.656,84.627,2.28066012]
[1772424860947,2.28118565,84.655,84.627,2.28066012]
[1772424862854,2.28118565,84.655,84.629,2.28066012]
[1772424863032,4.59866527,84.66,84.622,2.28066012]
[1772424863033,2.28118565,84.649,84.622,2.28066012]
[1772424864027,2.28118565,84.649,84.623,11.81711827]
[1772424864251,2.28118565,84.649,84.624,2.28066012]
[1772424865027,2.28118565,84.649,84.631,2.28066012]
[1772424865648,2.28118565,84.66,84.631,2.28066012]
[1772424866750,2.28118565,84.658,84.631,2.28066012]
[1772424867052,2.28118565,84.656,84.631,2.28066012]
[1772424869049,2.28118565,84.654,84.631,2.28066012]
[1772424870750,2.28118565,84.649,84.631,2.28066012]
[1772424870965,0.2,84.67,84.623,11.8169955]
[1772424870966,2.28118565,84.639,84.623,11.8169955]
[1772424871954,2.28118565,84.639,84.611,2.28066012]
[1772424872745,2.28118565,84.637,84.611,2.28066012]
[1772424873454,2.28118565,84.629,84.603,11.81990287]
[1772424873755,2.28118565,84.629,84.604,2.28066012]
[1772424874739,2.28118565,84.629,84.6,2.28066012]
[1772424875250,2.28118565,84.627,84.6,2.28066012]
[1772424875444,4.59669166,84.63,84.602,2.28066012]
[1772424875754,2.28118565,84.632,84.602,2.28066012]
[1772424877165,2.28118565,84.63,84.604,2.28066012]
[1772424878483,2.28118565,84.629,84.604,2.28066012]
[1772424882173,2.28118565,84.627,84.604,2.28066012]
[1772424883263,11.81669935,84.626,84.604,2.28066012]
[1772424885867,14.097885,84.626,84.604,2.28066012]
[1772424886870,2.28118565,84.619,84.591,2.28066012]
[1772424889182,2.28118565,84.619,84.593,2.30684234]
[1772424889376,2.28118565,84.619,84.595,2.30684234]
[1772424890589,2.28118565,84.619,84.601,2.30684234]
[1772424892186,2.28118565,84.619,84.601,11.82015197]
[1772424892383,2.28118565,84.619,84.602,2.30684234]
[1772424894280,2.27836219,84.624,84.604,2.30684234]
[1772424896570,2.27836219,84.624,84.599,2.30684234]
[1772424896771,4.59669166,84.63,84.601,2.30684234]
[1772424896772,2.27836219,84.622,84.601,2.30684234]
[1772424900681,2.27836219,84.622,84.602,2.30684234]
[1772424901469,11.81739757,84.621,84.602,2.30684234]
[1772424901689,2.27836219,84.62,84.602,2.30684234]
[1772424903190,2.27836219,84.62,84.6,4.59669166]
[1772424903191,2.27836219,84.62,84.604,2.30684234]
[1772424904685,2.27836219,84.62,84.592,2.30684234]
[1772424904896,4.59669166,84.66,84.544,11.82816048]
[1772424904897,0.28432314,84.599,84.544,11.82816048]
[1772424905078,4.59669166,84.6,84.544,41.39856169]
[1772424905400,4.59669166,84.59,84.55,4.59669166]
[1772424906088,4.59669166,84.6,84.56,4.59669166]
[1772424906392,4.59669166,84.61,84.57,4.59669166]
[1772424906774,11.81907362,84.609,84.571,2.43445852]
[1772424906978,11.81843065,84.614,84.591,2.43445852]
[1772424908973,11.81767688,84.619,84.591,2.43445852]
[1772424912277,4.59669166,84.64,84.601,2.43445852]
[1772424913575,4.59669166,84.63,84.601,2.43445852]
[1772424915380,4.59669166,84.64,84.601,2.43445852]
[1772424915678,4.59669166,84.64,84.603,2.43445852]
[1772424916096,4.59669166,84.61,84.571,2.43445852]
[1772424916301,4.59669166,84.6,84.571,2.43445852]
[1772424917200,11.82047069,84.599,84.571,2.43445852]
[1772424919294,4.59669166,84.59,84.565,2.43445852]
[1772424919503,4.59669166,84.59,84.56,2.43445852]
[1772424921296,0.02054816,84.588,84.56,2.43445852]
[1772424926998,0.02054816,84.588,84.561,2.43445852]
[1772424928802,11.82186809,84.589,84.563,2.43445852]
[1772424929003,0.02561737,84.594,84.565,2.43445852]
[1772424930705,0.02699201,84.598,84.565,2.43445852]
[1772424931199,0.02699201,84.598,84.571,2.43445852]
[1772424936614,0.03093038,84.579,84.532,2.43445852]
[1772424936815,0.03093038,84.569,84.532,2.43445852]
[1772424937300,0.03093038,84.569,84.541,2.43445852]
[1772424940497,0.03093038,84.569,84.543,2.43445852]
[1772424940702,16.42787173,84.57,84.543,2.43445852]
[1772424940703,11.8246623,84.57,84.543,2.43445852]
[1772424940903,0.03340832,84.569,84.543,2.43445852]
[1772424943015,0.03340832,84.569,84.538,2.43445852]
[1772424944127,0.03340832,84.569,84.542,2.43445852]
[1772424945320,0.03634898,84.591,84.561,2.43445852]
[1772424945520,9.05116151,84.604,84.571,2.43445852]
[1772424945521,0.03634898,84.599,84.571,2.43445852]
[1772424946212,0.03691701,84.598,84.571,2.43445852]
[1772424950416,0.03691701,84.598,84.562,2.43445852]
[1772424952728,0.03691701,84.598,84.56,4.60320943]
[1772424952729,0.04071463,84.603,84.571,2.43445852]
[1772424954215,16.42358165,84.6,84.572,2.43445852]
[1772424954434,16.46532609,84.6,84.572,2.43445852]
[1772424955020,11.86211666,84.6,84.572,2.43445852]
[1772424955222,11.82037222,84.6,84.572,2.43445852]
[1772424955531,9.05116151,84.604,84.581,2.43445852]
[1772424955714,4.60320943,84.6,84.572,2.43445852]
[1772424955917,0.04225049,84.599,84.572,2.43445852]
[1772424956316,0.04275073,84.598,84.572,2.43445852]
[1772424957019,0.04275073,84.598,84.574,2.43445852]
[1772424957734,0.04324522,84.609,84.581,2.43445852]
[1772424957917,0.04324522,84.608,84.581,2.43445852]
[1772424959731,0.04421723,84.599,84.581,2.43445852]
[1772424959932,0.04421723,84.599,84.536,59.14590736]
[1772424959933,0.04421723,84.599,84.561,2.43445852]
[1772424960138,0.04421723,84.589,84.561,2.43445852]
[1772424960638,4.60320943,84.58,84.555,2.43445852]
[1772424960838,0.04469488,84.579,84.555,2.43445852]
[1772424962123,11.8679607,84.579,84.555,2.43445852]
[1772424962342,0.04563379,84.578,84.555,2.43445852]
[1772424964425,0.04563379,84.578,84.557,2.43445852]
[1772424970352,0.04563379,84.578,84.559,2.43445852]
[1772424971248,0.04563379,84.578,84.55,4.60320943]
[1772424971249,0.04917979,84.588,84.561,2.43445852]
[1772424973038,4.65322569,84.6,84.571,2.43445852]
[1772424973237,0.05001626,84.599,84.571,2.43445852]
[1772424975648,0.05001626,84.599,84.572,2.43445852]
[1772424976066,0.05163231,84.609,84.572,2.43445852]
[1772424978369,11.87070593,84.609,84.581,2.43445852]
[1772424979157,0.05163231,84.609,84.581,2.43445852]
[1772424980161,0.05355014,84.608,84.581,2.43445852]
[1772424980343,0.05392059,84.599,84.553,2.43445852]
[1772424980544,0.05392059,84.599,84.561,2.43445852]
[1772424981742,0.05428679,84.579,84.562,11.82564272]
[1772424982263,0.05464878,84.589,84.563,2.43445852]
[1772424986270,0.05570999,84.588,84.565,2.43445852]
[1772424987257,0.05570999,84.588,84.556,2.43445852]
[1772424988188,0.05673506,84.579,84.556,2.43445852]
[1772424997981,0.05960547,84.578,84.556,2.43445852]
[1772424999860,0.05960547,84.578,84.558,2.43445852]
[1772425004790,0.06164056,84.582,84.558,2.43445852]
[1772425004982,0.06164056,84.587,84.561,2.43445852]
[1772425005183,0.06164056,84.585,84.561,2.43445852]
[1772425007890,0.06164056,84.585,84.552,2.46107949]
[1772425010290,0.06164056,84.585,84.553,11.82690147]
[1772425010496,0.06164056,84.585,84.554,2.46107949]
[1772425012710,0.06164056,84.585,84.555,11.82662172]
[1772425013002,0.06164056,84.585,84.556,2.46107949]
[1772425013586,0.06164056,84.585,84.561,2.46107949]
[1772425014710,0.06452392,84.595,84.563,2.46107949]
[1772425015095,0.06452392,84.589,84.563,2.46107949]
[1772425017511,0.06452392,84.589,84.564,11.82536303]
[1772425017709,0.06452392,84.589,84.565,2.46107949]
[1772425021501,0.06452392,84.589,84.567,2.46107949]
[1772425021831,0.06617693,84.61,84.57,4.60442897]
[1772425022001,0.06617693,84.61,84.566,41.38779177]
[1772425022002,0.06617693,84.615,84.581,2.46107949]
[1772425022999,0.06617693,84.615,84.583,2.46107949]
[1772425026218,0.06617693,84.615,84.585,2.46107949]
[1772425027322,0.0674912,84.609,84.585,2.46107949]
[1772425028409,11.88656482,84.609,84.585,2.46107949]
[1772425029125,11.81907362,84.609,84.585,2.46107949]
[1772425029324,0.06770153,84.608,84.585,2.46107949]
[1772425034129,0.0689137,84.619,84.591,2.43445852]
[1772425037412,0.0698616,84.618,84.591,2.43445852]
[1772425037818,0.0698616,84.618,84.593,2.43445852]
[1772425038023,0.0698616,84.618,84.581,2.43445852]
[1772425038413,0.0700447,84.609,84.581,2.43445852]
[1772425041428,0.0700447,84.609,84.583,2.43445852]
[1772425041429,0.07040461,84.608,84.583,2.43445852]
[1772425042317,0.07040461,84.608,84.54,4.60442897]
[1772425042318,0.07075631,84.589,84.561,2.43445852]
[1772425042513,0.07075631,84.569,84.546,2.43445852]
[1772425043829,0.07075631,84.569,84.547,11.82774078]
[1772425044134,0.07092913,84.578,84.548,2.43445852]
[1772425047022,0.07092913,84.578,84.551,2.43445852]
[1772425047237,11.82326582,84.579,84.551,2.43445852]
[1772425049443,11.82326582,84.579,84.553,2.43445852]
[1772425050842,11.89535038,84.579,84.555,2.43445852]
[1772425051745,11.89535038,84.579,84.556,11.82648185]
[1772425051939,11.89490584,84.584,84.557,2.43445852]
[1772425052142,4.60442897,84.59,84.556,11.82648185]
[1772425052143,0.07224212,84.588,84.561,2.43445852]
[1772425052440,0.07239788,84.588,84.561,2.43445852]
[1772425053734,4.60345039,84.6,84.561,2.43445852]
[1772425053735,11.89581766,84.579,84.561,2.43445852]
[1772425054028,0.07255184,84.578,84.561,2.43445852]
[1772425054343,0.07255184,84.578,84.552,2.43445852]
[1772425054641,0.07255184,84.578,84.51,4.60345039]
[1772425054642,0.07270404,84.569,84.542,2.43445852]
[1772425056364,0.07285449,84.568,84.542,2.43445852]
[1772425056530,0.07285449,84.568,84.544,2.43445852]
[1772425058851,0.07285449,84.568,84.546,2.43445852]
[1772425059048,11.82466388,84.569,84.546,2.43445852]
[1772425059240,0.07329555,84.599,84.561,2.43445852]
[1772425059745,0.07343921,84.589,84.561,2.43445852]
[1772425060048,59.08216515,84.628,84.545,41.39807203]
[1772425060049,0.07343921,84.609,84.581,2.43445852]
[1772425060253,11.89265252,84.608,84.581,2.43445852]
[1772425060635,0.07358121,84.607,84.581,14.25742508]
[1772425060830,4.60345039,84.61,84.582,2.43445852]
[1772425061849,4.60345039,84.61,84.584,2.43445852]
[1772425062049,11.89214131,84.613,84.584,2.43445852]
[1772425063348,11.89214131,84.613,84.572,29.56027338]
[1772425063349,11.81767688,84.619,84.591,2.43445852]
[1772425063553,18.04199044,84.637,84.615,2.43445852]
[1772425063859,0.07399752,84.636,84.615,2.43445852]
[1772425064454,0.07413311,84.639,84.615,2.43445852]
[1772425065546,0.07426715,84.645,84.617,2.43445852]
[1772425066758,4.60345039,84.64,84.617,2.43445852]
[1772425066938,0.07439964,84.639,84.617,2.43445852]
[1772425069150,0.07478807,84.629,84.595,2.43445852]
[1772425069545,0.07478807,84.629,84.601,2.43445852]
[1772425070937,0.07503964,84.628,84.601,2.43445852]
[1772425071360,0.07503964,84.628,84.603,2.43445852]
[1772425071747,0.07516327,84.638,84.611,2.43445852]
[1772425072138,11.88942529,84.644,84.611,2.43445852]
[1772425072545,11.88942529,84.644,84.621,2.43445852]
[1772425072845,0.07528547,84.643,84.621,2.43445852]
[1772425073041,4.60345039,84.64,84.621,2.43445852]
[1772425073635,4.67885666,84.64,84.621,2.43445852]
[1772425075236,11.81456598,84.642,84.621,2.43445852]
[1772425075760,0.07564372,84.645,84.621,2.43445852]
[1772425076458,0.07564372,84.645,84.623,2.43445852]
[1772425080561,11.81348864,84.649,84.625,2.43445852]
[1772425080859,11.88970254,84.649,84.625,2.43445852]
[1772425081444,0.07632403,84.648,84.625,2.43445852]
[1772425082762,0.0764329,84.649,84.625,2.43445852]
[1772425083255,0.28432314,84.653,84.62,4.60345039]
[1772425083256,11.81333092,84.651,84.627,2.43445852]
[1772425083463,11.81258438,84.656,84.631,2.43445852]
[1772425083759,0.07654053,84.677,84.641,2.43445852]
[1772425084063,0.2,84.69,84.651,2.43445852]
[1772425084064,11.68934326,84.683,84.651,2.43445852]
[1772425084249,6.15568136,84.677,84.661,2.43445852]
[1772425084555,0.2,84.69,84.671,2.43445852]
[1772425085562,0.2,84.69,84.673,2.43445852]
[1772425087156,0.2,84.69,84.675,2.43445852]
[1772425087573,0.2,84.69,84.66,4.60345039]
[1772425087574,4.80345039,84.69,84.66,2.43445852]
[1772425087775,0.07695879,84.689,84.661,2.43445852]
[1772425088374,0.2,84.69,84.661,2.43445852]
[1772425089174,0.2,84.69,84.663,2.43445852]
[1772425089674,0.2,84.69,84.671,2.43445852]
[1772425091357,0.2,84.69,84.673,2.43445852]
[1772425092966,0.07745515,84.689,84.658,2.43445852]
[1772425093194,0.07745515,84.689,84.537,47.31603374]
[1772425093195,0.36177829,84.669,84.603,2.43445852]
[1772425093479,0.36177829,84.669,84.571,11.82438424]
[1772425093480,4.60345039,84.61,84.571,29.56096061]
[1772425093672,2.34504315,84.626,84.571,29.56096061]
[1772425093874,4.60345039,84.62,84.58,4.60345039]
[1772425094269,4.60345039,84.59,84.57,0.1]
[1772425094574,4.60345039,84.58,84.541,11.82858021]
[1772425094777,2.25080312,84.587,84.55,4.60345039]
[1772425094978,4.60345039,84.61,84.57,4.60345039]
[1772425095154,2.25080312,84.612,84.58,4.60345039]
[1772425095355,2.25080312,84.612,84.581,2.31689488]
[1772425095555,11.81879337,84.612,84.581,2.31689488]
[1772425096277,11.81879337,84.612,84.583,2.31689488]
[1772425097177,11.81544278,84.635,84.601,2.34699283]
[1772425097575,11.81544278,84.635,84.603,2.34699283]
[1772425099765,11.81544278,84.635,84.611,2.34699283]
[1772425100364,11.81544278,84.635,84.61,4.60345039]
[1772425100365,2.23885522,84.634,84.585,2.34699283]
[1772425100569,2.23885522,84.634,84.571,3.69383402]
[1772425100570,2.23885522,84.619,84.571,2.34699283]
[1772425100770,2.23885522,84.609,84.571,2.34699283]
[1772425100978,2.23885522,84.619,84.581,2.34699283]
[1772425101684,11.81699962,84.624,84.593,2.34699283]
[1772425101878,2.23885522,84.636,84.601,2.34699283]
[1772425102081,2.23885522,84.632,84.601,2.34699283]
[1772425102473,2.23885522,84.619,84.582,2.34699283]
[1772425102985,2.23885522,84.619,84.58,4.60345039]
[1772425102986,2.23885522,84.619,84.584,2.34699283]
[1772425104487,2.23885522,84.617,84.584,2.34699283]
[1772425105194,4.60345039,84.63,84.591,2.34699283]
[1772425105195,0.28432314,84.623,84.591,2.34699283]
[1772425105390,2.23885522,84.629,84.601,2.34699283]
[1772425105586,11.81552135,84.635,84.611,2.34699283]
[1772425105893,14.05437657,84.635,84.611,2.34699283]
[1772425107697,11.81552135,84.635,84.611,2.34699283]
[1772425107886,2.23885522,84.634,84.601,2.34699283]
[1772425108192,2.23885522,84.629,84.601,2.34699283]
[1772425109078,2.23885522,84.619,84.581,2.34699283]
[1772425109668,2.23885522,84.617,84.582,14.16983929]
[1772425109893,2.23885522,84.617,84.583,2.34699283]
[1772425112295,2.23885522,84.615,84.585,2.34699283]
[1772425112794,2.23885522,84.648,84.601,2.34699283]
[1772425113093,2.23885522,84.642,84.601,2.34699283]
[1772425114380,2.23885522,84.642,84.6,4.60345039]
[1772425114381,6.84230561,84.64,84.603,2.34699283]
[1772425114595,2.23885522,84.639,84.603,2.34699283]
[1772425114785,11.81460521,84.641,84.611,2.34699283]
[1772425116014,11.81398033,84.646,84.611,2.34699283]
[1772425116390,14.05283555,84.646,84.611,2.34699283]
[1772425116587,14.05283555,84.646,84.613,2.34699283]
[1772425118010,11.81398033,84.646,84.613,2.34699283]
[1772425118708,2.23885522,84.649,84.615,2.34699283]
[1772425121414,2.23885522,84.647,84.615,2.34699283]
[1772425121793,2.23885522,84.647,84.617,2.34699283]
[1772425121994,2.23885522,84.661,84.631,2.34699283]
[1772425122205,11.81195369,84.66,84.631,2.34699283]
[1772425123102,11.81134202,84.665,84.631,2.34699283]
[1772425123700,2.23885522,84.668,84.633,2.34699283]
[1772425124301,11.81055863,84.67,84.641,2.34699283]
[1772425125416,2.23885522,84.67,84.641,2.34699283]
[1772425125619,2.23885522,84.677,84.642,2.34699283]
[1772425127407,11.80972176,84.676,84.643,11.81432605]
[1772425127615,11.80972176,84.676,84.644,2.43264992]
[1772425128216,14.22879686,84.676,84.644,2.43264992]
[1772425128419,2.4190751,84.675,84.644,2.43264992]
[1772425128611,2.4190751,84.673,84.644,2.43264992]
[1772425130015,2.4190751,84.673,84.646,2.43264992]
[1772425130708,11.81027966,84.672,84.646,2.43264992]
[1772425131300,0.2,84.69,84.65,4.59888008]
[1772425131301,4.79888008,84.69,84.65,4.59888008]
[1772425131521,4.79888008,84.69,84.647,41.34818717]
[1772425131522,11.80790893,84.689,84.661,2.43264992]
[1772425131734,2.4190751,84.688,84.654,2.43264992]
[1772425132309,2.4190751,84.688,84.661,2.43264992]
[1772425132611,2.4190751,84.686,84.661,2.43264992]
[1772425133625,2.4190751,84.684,84.653,2.43264992]
[1772425134736,2.4190751,84.684,84.655,2.43264992]
[1772425135827,2.6190751,84.69,84.661,2.43264992]
[1772425136032,0.2,84.69,84.671,1.84194968]
[1772425136913,0.2,84.7,84.67,4.59888008]
[1772425137110,0.2,84.7,84.681,2.43264992]
[1772425137837,0.2,84.72,84.691,2.43264992]
[1772425138213,11.80438136,84.715,84.691,2.43264992]
[1772425138618,11.80438136,84.715,84.7,4.59888008]
[1772425138829,11.80438136,84.715,84.7,7.03153]
[1772425139127,11.80438136,84.715,84.701,2.43264992]
[1772425139531,0.2,84.72,84.702,2.43264992]
[1772425140032,11.80372761,84.719,84.702,2.43264992]
[1772425140206,2.4190751,84.718,84.69,4.59888008]
[1772425141323,2.4190751,84.716,84.68,4.59888008]
[1772425142234,2.4190751,84.716,84.681,2.43264992]
[1772425143014,2.4190751,84.716,84.691,2.43264992]
[1772425144833,0.2,84.72,84.557,19.66633568]
[1772425144834,14.42275749,84.72,84.693,2.43264992]
[1772425145232,0.2,84.72,84.693,2.43264992]
[1772425146024,40.10199228,84.722,84.701,0.07040641]
[1772425147333,11.80344896,84.721,84.695,0.07066306]
[1772425147532,2.44280486,84.72,84.693,11.80722496]
[1772425147732,2.44280486,84.72,84.694,0.07066306]
[1772425148342,2.44280486,84.72,84.688,11.80802593]
[1772425148638,2.44280486,84.699,84.661,0.07078919]
[1772425148821,2.44280486,84.699,84.67,4.59888008]
[1772425149136,2.44280486,84.699,84.671,0.07078919]
[1772425149321,2.44280486,84.693,84.65,4.59888008]
[1772425149525,0.28432314,84.676,84.637,0.07091386]
[1772425149726,4.59888008,84.69,84.63,4.59888008]
[1772425149727,2.44280486,84.669,84.63,16.41496533]
[1772425149922,2.44280486,84.669,84.631,0.07091386]
[1772425150740,2.44280486,84.669,84.64,10.9418668]
[1772425151133,2.44280486,84.679,84.641,0.0710371]
[1772425151329,2.44280486,84.677,84.642,0.0710371]
[1772425151843,2.44280486,84.677,84.641,11.81460521]
[1772425152147,2.44280486,84.677,84.65,11.01162982]
[1772425153244,2.44280486,84.677,84.651,11.81320953]
[1772425155241,2.44280486,84.675,84.642,0.06481138]
[1772425156549,10.9418668,84.69,84.651,0.06242005]
[1772425156738,2.44280486,84.689,84.661,0.06242005]
[1772425158250,2.44280486,84.689,84.661,11.81181417]
[1772425160144,11.80818779,84.687,84.651,11.81320953]
[1772425160336,2.44280486,84.686,84.651,11.81320953]
[1772425160747,10.9418668,84.68,84.651,11.81320953]
[1772425160946,2.44280486,84.679,84.651,11.81320953]
[1772425161550,2.44280486,84.679,84.651,41.34623335]
[1772425161749,2.44280486,84.679,84.651,41.40180216]
[1772425161942,10.9418668,84.69,84.652,2.24563564]
[1772425162457,10.9418668,84.7,84.67,13.18750244]
[1772425162648,11.80651483,84.699,84.663,2.24563564]
[1772425163857,11.80679362,84.697,84.664,11.81139563]
[1772425164055,11.80679362,84.697,84.644,59.0707782]
[1772425164056,10.9418668,84.68,84.641,2.24563564]
[1772425164355,2.28755979,84.679,84.65,10.9418668]
[1772425164731,2.28755979,84.679,84.66,10.9418668]
[1772425164934,2.28755979,84.696,84.66,10.9418668]
[1772425165945,2.28755979,84.694,84.661,11.81181417]
[1772425166355,2.28755979,84.694,84.662,2.24563564]
[1772425166539,2.28755979,84.694,84.661,11.81181417]
[1772425169463,2.28755979,84.692,84.66,10.9418668]
[1772425169860,11.80735125,84.693,84.607,2.24563564]
[1772425169861,2.57188293,84.669,84.607,2.24563564]
[1772425170062,2.28755979,84.649,84.62,10.9418668]
[1772425170241,2.28755979,84.649,84.62,13.18750244]
[1772425170449,2.28755979,84.649,84.621,2.24563564]
[1772425171151,2.28755979,84.639,84.606,11.8194927]
[1772425171560,2.28755979,84.619,84.584,11.82256691]
[1772425171861,2.28755979,84.619,84.585,2.24563564]
[1772425172164,2.28755979,84.619,84.584,41.37898419]
[1772425172165,2.28755979,84.619,84.591,2.24563564]
[1772425172753,2.28755979,84.619,84.59,10.9418668]
[1772425172955,2.28755979,84.619,84.584,43.62461983]
[1772425173270,2.28755979,84.619,84.591,2.24563564]
[1772425174362,10.9418668,84.64,84.611,2.24563564]
[1772425174852,10.9418668,84.64,84.604,2.24563564]
[1772425175049,11.81488439,84.639,84.604,2.24563564]
[1772425175252,10.9418668,84.64,84.604,2.24563564]
[1772425175453,10.9418668,84.64,84.61,13.18750244]
[1772425175655,10.9418668,84.64,84.601,2.24563564]
[1772425175955,22.75669327,84.64,84.601,2.24563564]
[1772425176152,2.28755979,84.619,84.592,11.82144883]
[1772425176346,2.28755979,84.599,84.565,2.24563564]
[1772425176552,2.28755979,84.599,84.57,10.95905886]
[1772425176743,2.28755979,84.599,84.561,11.82578257]
[1772425176947,2.28755979,84.589,84.561,11.82578257]
[1772425178571,2.28755979,84.599,84.571,2.24563564]
[1772425178791,2.28755979,84.606,84.581,2.24563564]
[1772425178967,2.28755979,84.606,84.57,10.95905886]
[1772425179455,2.28755979,84.606,84.57,13.2046945]
[1772425179862,2.28755979,84.606,84.571,2.24563564]
[1772425182162,2.28755979,84.606,84.573,2.24563564]
[1772425182366,2.28755979,84.616,84.6,10.95905886]
[1772425182576,2.28755979,84.623,84.6,10.95905886]
[1772425183076,2.28755979,84.639,84.61,10.95905886]
[1772425183268,2.28755979,84.633,84.601,2.24563564]
[1772425185490,2.28755979,84.633,84.603,2.24563564]
[1772425185778,2.28755979,84.64,84.62,10.95905886]
[1772425185978,2.28755979,84.647,84.62,13.2046945]
[1772425186183,2.28755979,84.647,84.621,2.24563564]
[1772425186560,2.28755979,84.639,84.56,0.1]
[1772425186761,10.95905886,84.54,84.49,0.1]
[1772425186977,6.02,84.522,84.491,30.0]
[1772425187160,10.95905886,84.52,84.49,0.1]
[1772425187361,10.95905886,84.51,84.49,0.1]
[1772425187569,11.83445957,84.499,84.472,2.45957012]
[1772425187881,10.95905886,84.49,84.462,2.45957012]
[1772425188176,0.28432314,84.489,84.46,0.1]
[1772425188381,10.95905886,84.48,84.46,0.1]
[1772425188581,4.74074074,84.593,84.46,0.1]
[1772425188582,10.95905886,84.51,84.471,2.45957012]
[1772425188962,10.95905886,84.5,84.471,2.45957012]
[1772425189182,10.95905886,84.51,84.471,2.45957012]
[1772425189375,0.80954493,84.509,84.471,2.45957012]
[1772425189775,10.95905886,84.49,84.463,2.45957012]
[1772425189976,10.95905886,84.49,84.4,10.95905886]
[1772425189977,0.28432314,84.469,84.412,2.45957012]
[1772425190178,10.95905886,84.46,84.43,10.95905886]
[1772425190380,10.95905886,84.46,84.431,2.45957012]
[1772425190767,5.36086188,84.486,84.431,2.45957012]
[1772425190976,3.69383402,84.505,84.451,2.45957012]
[1772425191175,10.95905886,84.48,84.451,2.45957012]
[1772425191790,10.95905886,84.49,84.461,2.45957012]
[1772425192484,10.95905886,84.5,84.471,2.45957012]
[1772425192686,10.95905886,84.5,84.452,41.4436603]
[1772425192687,5.36086188,84.543,84.481,2.45957012]
[1772425192873,0.80873536,84.53,84.481,2.30307037]
[1772425193073,11.83073319,84.526,84.481,2.30307037]
[1772425193984,0.80873536,84.53,84.483,2.30307037]
[1772425194686,10.95905886,84.51,84.483,2.30307037]
[1772425195696,10.95905886,84.52,84.485,2.30307037]
[1772425195899,10.95905886,84.52,84.491,2.30307037]
[1772425196292,10.95905886,84.54,84.511,2.30307037]
[1772425196788,0.6108,84.51,84.485,2.30307037]
[1772425196990,10.95905886,84.52,84.485,2.30307037]
[1772425197572,10.95905886,84.53,84.491,2.30307037]
[1772425197778,10.95905886,84.54,84.501,2.30307037]
[1772425197971,10.95905886,84.54,84.511,2.30307037]
[1772425198190,10.95905886,84.55,84.511,2.30307037]
[1772425198680,10.95905886,84.54,84.511,2.30307037]
[1772425199801,0.82491989,84.519,84.464,2.30307037]
[1772425200094,10.95905886,84.49,84.461,2.30307037]
[1772425200293,0.82491989,84.515,84.461,2.30307037]
[1772425200294,10.95905886,84.5,84.461,2.30307037]
[1772425200493,3.69383402,84.536,84.49,10.95905886]
[1772425200696,10.95905886,84.54,84.501,2.30307037]
[1772425201008,10.95905886,84.55,84.511,2.30307037]
[1772425201180,10.95905886,84.55,84.48,10.95905886]
[1772425201181,10.95905886,84.56,84.531,2.30307037]
[1772425201879,10.95905886,84.56,84.53,10.95905886]
[1772425201880,10.95905886,84.56,84.533,2.30307037]
[1772425202289,10.95905886,84.55,84.523,2.30307037]
[1772425202485,0.83161049,84.529,84.491,2.30307037]
[1772425202679,10.95905886,84.52,84.494,2.30307037]
[1772425203397,10.95905886,84.56,84.494,2.30307037]
[1772425203398,0.83378966,84.538,84.494,2.30307037]
[1772425203586,10.95905886,84.53,84.501,2.30307037]
[1772425203787,10.95905886,84.53,84.503,2.30307037]
[1772425205089,10.95905886,84.52,84.503,2.30307037]
[1772425205294,10.95905886,84.53,84.503,2.30307037]
[1772425206299,0.84017812,84.598,84.521,2.30307037]
[1772425206485,10.95905886,84.56,84.531,2.30307037]
[1772425206906,10.95905886,84.57,84.541,2.30307037]
[1772425208187,11.80131774,84.57,84.531,14.1330499]
[1772425208388,0.84431574,84.569,84.532,2.30307037]
[1772425208606,10.95905886,84.56,84.532,2.30307037]
[1772425208817,0.84431574,84.569,84.532,2.30307037]
[1772425209699,10.95905886,84.55,84.523,2.30307037]